Cogmind - Beta 10.1 @@@ ROGUE MODE // 2020.10.23 @ 19:37:31 Player: W_W Result: Destroyed by D-53 Grenadier with Mini Grenade Launcher Performance ------------- Evolutions (0) 0 Regions Visited (2) 400 Robots Destroyed (50) 250 Value Destroyed (829) 829 Prototype IDs (2) 40 Alien Tech Used (0) 0 Bonus (0) 0 TOTAL SCORE: 1519 Bonus ------- None Cogmind --------- Core Integrity 0/250 Matter 223/300 Energy 100/100 System Corruption 0% Temperature Cool (0) Movement Core (800) Ox15 Location -10/Mines Parts ------- > --- POWER (1) -------- (None) > --- PROPULSION (2) --- (None) > --- UTILITY (2) ------ Large Storage Unit High-capacity Storage Unit > --- WEAPON (2) ------- (None) > --- INVENTORY (18) --- Ion Engine Ion Engine Light Nuclear Core Light Nuclear Core High-capacity Matter Pod (200) High-capacity Matter Pod (67) Weight Redist. System Sensor Array Sensor Array Transport Network Coupler Light Armor Plating Hacking Suite Hacking Suite Peak State ------------ > --- POWER ------------ Ion Engine > --- PROPULSION ------- Light Treads Light Treads > --- UTILITY ---------- Large Storage Unit High-capacity Storage Unit > --- WEAPON ----------- Assault Rifle Grenade Launcher > --- INVENTORY -------- Ion Engine Ion Engine Light Ion Engine Light Nuclear Core Large Storage Unit High-capacity Matter Pod High-capacity Matter Pod Sensor Array Sensor Array Hacking Suite Small Laser Small Laser Beam Cannon Datajack Datajack Mining Laser [Rating: 9] Favorites ----------- Power Ion Engine Engine Ion Engine Propulsion Light Treads Treads Light Treads Utility Small Storage Unit Storage Small Storage Unit Weapon Assault Rifle Energy Gun Small Laser Energy Cannon Beam Cannon Ballistic Gun Assault Rifle Launcher Grenade Launcher Special Weapon Mining Laser Special Melee Weapon Datajack Build | -11 -10 -10 ------- Run | Scr Mat Min Slots Evolved . | . . . Power . | . . . Propulsion . | . . . Utility . | . . . Weapon . | . . . Parts Attached 28 | 8 13 7 Power 3 | 2 1 . Engine 3 | 2 1 . Core . | . . . Reactor . | . . . Propulsion 5 | 2 3 . Treads 5 | 2 3 . Leg . | . . . Wheel . | . . . Hover . | . . . Flight . | . . . Utility 6 | 2 4 . Device . | . . . Storage 6 | 2 4 . Processor . | . . . Hackware . | . . . Protection . | . . . Artifact . | . . . Weapon 14 | 2 5 7 Energy Gun 2 | . . 2 Energy Cannon 2 | . . 2 Ballistic Gun 5 | 2 3 . Ballistic Cannon . | . . . Launcher 2 | . 2 . Special Weapon 1 | . . 1 Impact Weapon . | . . . Slashing Weapon . | . . . Piercing Weapon . | . . . Special Melee Weapon 2 | . . 2 Unidentified Prototypes . | . . . Parts Lost 11 | . 1 10 Power 1 | . . 1 Propulsion 2 | . 1 1 Utility . | . . . Weapon 8 | . . 8 Highest Loss Streak 9 | . 1 9 Average Slot Usage (%) 93 | . 94 73 Engine 13 | . 13 10 Treads 23 | . 24 10 Storage 28 | . 28 28 Ballistic Gun 15 | . 16 3 Launcher 10 | . 10 10 Naked Turns . | . . . Heaviest Build 59 | 16 58 59 Greatest Support 40 | 40 40 20 Greatest Overweight (x) 16 | 3 3 16 Average Overweight (x) . | . . 2 Largest Inventory Capacity 18 | 8 18 18 Average Capacity 13 | 7 14 18 Most Carried 18 | 8 18 18 Average Carried 11 | 6 13 16 Final Capacity 18 | 8 18 18 Final Carried 18 | 8 18 13 Class Distribution -------------------- 100% | Mutant Dominant Class ---------------- Mutant | -10/Materials Mutant | -10/Mines Resources | -11 -10 -10 ----------- Run | Scr Mat Min Matter Collected 1096 | 543 509 44 Remotely . | . . . Salvage Created 1000 | 357 582 61 Parts 99 | 37 55 7 Haulers Intercepted 1 | . 1 . Recyclers Shooed 2 | . 2 . Parts Field Recycled . | . . . Retrieved Matter . | . . . Parts Self-Destructed . | . . . Prevented . | . . . Kills | -11 -10 -10 ------- Run | Scr Mat Min Combat Hostiles Destroyed 24 | . 19 5 Guns 10 | . 9 1 AOE 14 | . 10 4 Classes Destroyed 9 | 3 6 . Worker 5 | 4 . 1 Builder 1 | . 1 . Tunneler 9 | 9 . . Hauler 1 | . 1 . Recycler 3 | 1 2 . Operator 4 | . 4 . Watcher 3 | . 3 . Swarmer 12 | . 9 3 Grunt 12 | . 10 2 Best Kill Streak 4 | 4 4 3 Combat Bots Only 3 | . 3 3 Max Kills in Single Turn 3 | 1 2 3 Gunslinging . | . . . Exploded 3 | . 2 3 Melee . | . . . Uniques/NPCs Destroyed . | . . . Combat | -11 -10 -10 -------- Run | Scr Mat Min Damage Taken 1154 | . 436 718 Core 270 | . 86 184 Absorbed by Shields . | . . . Core Remaining (%) 100 | 100 . . Volleys Fired 119 | 37 72 10 Largest 2 | 2 2 2 Hottest 90 | 40 50 90 Shots Fired 177 | 74 91 12 Gun 141 | 74 65 2 Cannon 3 | . . 3 Launcher 33 | . 26 7 Special . | . . . Kinetic 139 | 74 65 . Thermal 5 | . . 5 Explosive 33 | . 26 7 Electromagnetic . | . . . Robot Hit Streak 14 | 14 7 4 Robot Miss Streak 3 | 2 3 1 Penetration Max . | . . . Secondary Targets . | . . . Shots Hit Robots 98 | 40 49 9 Core Hits 79 | 20 48 11 Critical Hits 1 | . 1 . Critical Kills 1 | . 1 . Critical Parts Destroyed . | . . . Melee Attacks 1 | . . 1 Impact . | . . . Slashing . | . . . Piercing . | . . . Sneak Attacks . | . . . Combat Hostiles . | . . . Follow-up Attacks . | . . . Damage Inflicted 2552 | 394 1703 455 Guns 980 | 394 563 23 Cannons 17 | . . 17 Explosions 1555 | . 1140 415 Melee . | . . . Ramming . | . . . Kinetic 957 | 394 563 . Thermal 91 | . . 91 Explosive 1461 | . 1097 364 Electromagnetic 43 | . 43 . Impact . | . . . Slashing . | . . . Piercing . | . . . Highest Corruption . | . . . Average Corruption . | . . . Corruption Purged . | . . . Overload Shots . | . . . Overflow Damage 28 | . 27 1 Projectiles . | . . . Explosions 28 | . 27 1 Melee . | . . . Knockbacks . | . . . Impact . | . . . Kinetic . | . . . Secondary . | . . . Self-Inflicted Damage 158 | . 73 85 Shots 7 | . 4 3 Rammed . | . . . Targets Rammed . | . . . Kicked . | . . . Crushed . | . . . Highest Temperature 30 | . 12 30 Average Temperature 9 | . 6 12 Received Heat Transfer 138 | . 129 9 Siege Activations . | . . . Robots Corrupted . | . . . Combat Hostiles . | . . . Parts Fried . | . . . Impact Corruptions . | . . . Robots Melted . | . . . Combat Hostiles . | . . . Parts Melted . | . . . Heat Transferred 137 | . . 137 Parts Sabotaged . | . . . Parts Stolen . | . . . Parts Stripped . | . . . Power Chain Reactions . | . . . Missiles Intercepted . | . . . Alert | -11 -10 -10 ------- Run | Scr Mat Min Peak Influence 295 | 65 295 241 Initial 81 | . 3 81 Average 134 | 31 163 195 Maximum Alert Level 1 | . 1 1 Low Security (%) 72 | 100 65 47 Level 1 27 | . 34 52 Level 2 . | . . . Level 3 . | . . . Level 4 . | . . . Level 5 . | . . . High Security . | . . . Max Security . | . . . Squads Dispatched 3 | . 3 . Investigation 1 | . 1 . Extermination . | . . . Reinforcement 2 | . 2 . Assault . | . . . Garrison . | . . . Intercept . | . . . Construction Impeded . | . . . Haulers Reinforced . | . . . Stealth | -11 -10 -10 --------- Run | Scr Mat Min Distress Signals 2 | . 2 . Communications Jammed . | . . . Distress Signals . | . . . Times Spotted 40 | . 29 11 Peak Tracking Total 5 | . 5 4 Tactical Retreats 1 | . 1 . Traps | -11 -10 -10 ------- Run | Scr Mat Min Traps Triggered 4 | . 4 . Indirectly . | . . . Trap Hack Attempts . | . . . Triggered . | . . . Disarmed . | . . . Reprogrammed . | . . . Reused . | . . . Traps Extracted . | . . . Installed . | . . . Triggered . | . . . Machines | -11 -10 -10 ---------- Run | Scr Mat Min Machines Disabled 7 | . 5 2 Max in Single Turn 1 | . 1 1 Machines Sabotaged . | . . . Garrisons Compromised . | . . . Overloaded Fab Kills . | . . . Fab Network Shutdowns . | . . . Hacking | -11 -10 -10 --------- Run | Scr Mat Min Machines Accessed 6 | . 6 . Terminals 5 | . 5 . Fabricators . | . . . Repair Stations . | . . . Recycling Units 1 | . 1 . Scanalyzers . | . . . Garrison Access . | . . . Total Hacks 27 | . 27 . Successful 16 | . 16 . Failed 11 | . 11 . Catastrophic . | . . . Database Lockouts . | . . . Manual . | . . . Terminals 21 | . 21 . Fabricators . | . . . Repair Stations . | . . . Recycling Units 6 | . 6 . Scanalyzers . | . . . Garrison Access . | . . . Terminal Hacks 12 | . 12 . Prototype ID Bank 1 | . 1 . Branch Access Points 1 | . 1 . Alert Level 3 | . 3 . Locate Traps 5 | . 5 . Assault Status 1 | . 1 . Recall Investigation 1 | . 1 . Fabricator Hacks . | . . . Repair Station Hacks . | . . . Recycling Unit Hacks 4 | . 4 . Process 1 | . 1 . Report Inventory 1 | . 1 . Retrieve Matter 1 | . 1 . Retrieve Components 1 | . 1 . Scanalyzer . | . . . Garrison Access Hacks . | . . . Unauthorized Hacks . | . . . Terminals . | . . . Fabricators . | . . . Repair Stations . | . . . Recycling Units . | . . . Scanalyzers . | . . . Garrison Access . | . . . Data Cores Recovered 2 | . 2 . Used . | . . . Hacking Detections 4 | . 4 . Full Trace Events . | . . . Feedback Events . | . . . Feedback Blocked . | . . . Robot Schematics Acquired . | . . . Robots Built . | . . . Matter . | . . . Time . | . . . Total Robot Build Rating . | . . . Part Schematics Acquired . | . . . Parts Built . | . . . Matter . | . . . Time . | . . . Total Part Build Rating . | . . . Parts Repaired . | . . . Time . | . . . Parts Recycled . | . . . Recycled Matter 212 | . 212 . Retrieved Matter 291 | . 291 . Retrieved Components . | . . . Parts Scanalyzed . | . . . Part Schematics Acquired . | . . . Parts Damaged . | . . . Bothacking | -11 -10 -10 ------------ Run | Scr Mat Min Used RIF Installer . | . . . Robots Hacked 1 | . . 1 Non-combat . | . . . Combat 1 | . . 1 Robot Hacks Applied 1 | . . 1 parse_system 1 | . . 1 Relay Couplers Released . | . . . Robots Rewired . | . . . Allies Hacked . | . . . Hacks Repelled . | . . . Allies | -11 -10 -10 -------- Run | Scr Mat Min Total Allies . | . . . Largest Group . | . . . Highest-Rated Group . | . . . Highest-Rated Ally . | . . . Total Orders . | . . . Ally Attacks . | . . . Total Damage . | . . . Kills . | . . . Allies Corrupted . | . . . Allies Melted . | . . . Intel | -11 -10 -10 ------- Run | Scr Mat Min Robot Analysis Total . | . . . Derelict Logs Recovered . | . . . Drone Launches . | . . . Drone Recoveries . | . . . Exploration | -11 -10 -10 ------------- Run | Scr Mat Min Turns Passed 2012 | 466 1439 107 Spaces Moved 930 | 215 684 31 Core 16 | 13 1 2 Treads 914 | 202 683 29 Legs . | . . . Wheels . | . . . Hover . | . . . Flight . | . . . Fastest Speed 50 | 50 160 200 Average Speed 174 | 159 175 240 Slowest Speed 850 | 200 200 850 Overloaded Moves . | . . . Propulsion Burnouts . | . . . Robots Hopped . | . . . Cave-ins Triggered . | . . . Exploration Rate (%) 38 | 8 96 11 Regions Visited 2 Branch Regions 1 Pre-discovered Areas . | . . . Known Exits Taken 1 | . 1 . Unknown Exits Taken 1 | 1 . . Scrap Searched . | . . . Spaces Dug 6 | . 6 . Terrain Destroyed 199 | . 140 59 Melee . | . . . Projectile . | . . . AOE 199 | . 140 59 Terrain Rammed . | . . . Walls Destroyed . | . . . Machines Disabled . | . . . Actions | -11 -10 -10 --------- Run | Scr Mat Min Total 1155 | 269 836 50 Wait 28 | . 28 . Move 928 | 214 683 31 Hop . | . . . Pick Up 33 | 9 23 1 Fast Attach 13 | 6 7 . Attach 8 | 1 1 6 Detach 1 | . 1 . Swap 7 | 1 5 1 Drop 17 | 1 16 . Fire 119 | 37 72 10 Melee 1 | . . 1 Ram . | . . . Kick . | . . . Crush . | . . . Escape Stasis . | . . . Rewire . | . . . Trap . | . . . Miscellaneous . | . . . Route ------- -11/Scrapyard -10/Materials (discovered 5 exits: [*Mat x3] / *Min x2) -10/Mines History --------- Turn | Location | Event 51 | -11/Scrapyard | Discovered new exit (range 15) 467 | -11/Scrapyard | Entered Materials 468 | -10/Materials | Build established: Mutant 838 | -10/Materials | Identified exit to Mines 1091 | -10/Materials | Discovered new exit (range 9) 1496 | -10/Materials | Discovered new exit (range 14) 1629 | -10/Materials | Discovered new exit (range 12) 1906 | -10/Materials | Entered Mines 1953 | -10/Mines | Assembled infested the area 1987 | -10/Mines | Core integrity fell below 50% 2003 | -10/Mines | Core integrity fell below 20% 2013 | -10/Mines | Destroyed by D-53 Grenadier with Mini Grenade Launcher Last Messages --------------- 01992_ The unstable cave ceiling collapses. 01994_ K-01 Serf collects debris. 01995_ as-08232 destroyed. 01995_ as-09553 destroyed. 01996_ The unstable cave ceiling collapses. 01996_ as-70418 destroyed. 01998_ K-01 Serf collects debris. 01998_ as-83782 destroyed. 01998_ K-01 Serf destroyed. 01999_ The unstable cave ceiling collapses. 02000_ Mining Laser destroyed. 02002_ Datajack destroyed. 02003_ Jacked D-53 Grenadier... >>parse_system Reading system data... 02004_ The unstable cave ceiling collapses. 02004_ Datajack destroyed. 02006_ R-06 Scavenger destroyed. 02006_ D-53 Grenadier destroyed. 02009_ The unstable cave ceiling collapses. Map ----- +----------------------------------------------------+ | ?????????????????????????????????????????????????? | | ?????????????????????????????????????????????????? | | ?????????????????????????????????????????????????? | | ?????????????????????????????????????????????????? | | ?????????????????????????????????????????????????? | | ?????????????????????????????????????????????????? | | ?????????????????????????????????????????????????? | | ?????????????????????????????????????????????????? | | ?????????????????????????????????????????????????? | | ?????????????????##########??????????????????????? | | ?????????????????# #??????????????????????? | | ???????????????## " #??????????????????????? | | ???????????????%% #??????????????????????? | | ??????????????## #??????????????????????? | | ?????????????## ##?????????????????????? | | ?????????????? #?????????????????????? | | ??????????????? d #?????????????????????? | | ????????????????# ?????????????????????? | | ?????????????????# ##????????????????????? | | ?????????????????# # # #????????????????????? | | ??????????????????# #! #??####??????????????? | | ???????????????????# # ## #??????????????? | | ??????????????????## #??????????????? | | ??????????????????# #??????????????? | | ??????????????????# #??????????????? | | ??????????????????# @ #??????????????? | | ??????????????????# = k????????? | | ??????????????????# ## #####??????????? | | ??????????????????## # #???##??????????????? | | ???????????????????## ###???????????????????? | | ?????????????????### ### ##?????????????????????? | | ?????????????????#"# ;;##??????????????????????? | | ?????????????????# = #??????????????????????? | | ?????????????????# = #??????????????????????? | | ?????????????????# #??????????????????????? | | ?????????????????# #??????????????????????? | | ?????????????????#" ???????????????????? | | ?????????????????## #####??????????????????? | | ??????????????????# #??????????????????????? | | ??????????????????#########??????????????????????? | | ?????????????????????????????????????????????????? | | | | | | | | | | | | | | | | | | | +----------------------------------------------------+ Best States ------------- Heat Dissipation 25 Energy Generation 10 Energy Capacity 250 Matter Stores 300 Matter Capacity 300 Sight Range 16 Terrain Scan Density 10 Evasion (%) 40 Recoil Reduction 2 Item Schematics ----------------- None Robot Schematics ------------------ None Fabricated ------------ Nothing Alien Tech Used ----------------- None Achievements -------------- None Challenges ------------ None Game ------ Seed MicroPlasmaWeb Manual? 0 Play Time 00:22:11 Cumulative 38.6 hours Start 2020.10.23 @ 19:03:01 End 2020.10.23 @ 19:37:31 Sessions 1 Manual Loads 0 Difficulty Rogue Special Mode None Game No. 38 Rogue 38 Adventurer 0 Explorer 0 Win Type - Total 0 Types 0/0/0/0/0/0/0/0/0 Lore% 25 Gallery% 25 Achievement% 23 Wizard Run 0 Options --------- ASCII 0 Keyboard 0 Movement Mouse Keybinds 0 Fullscreen 1 Font 18/SmallcapsGlow Map View 76x50 Tactical HUD 1 Map Filters NONE Filters NONE Steam 1 RUN: 96cc15b1-9c03-49ea-b243-fadcabb00b9e